lending/lending_fUSD_20240219
["ID","MTS","AMOUNT","RATE_DAILY","PERIOD"]
[314414648,1708313437679,-770.58,0.00039999,4]
[314414649,1708313437689,-770.58,0.00039999,4]
[314414650,1708313437698,-819.74,0.00039999,4]
[314414651,1708313437707,-819.74,0.00039999,4]
[314414652,1708313437716,-819.74,0.00039999,4]
[314414653,1708313437726,-819.74,0.00039999,4]
[314414654,1708313437735,-150.0,0.00039999,2]
[314414655,1708313437744,-150.0,0.00039999,2]
[314414656,1708313437754,-1000.0,0.0004,2]
[314414657,1708313437763,-418.55604183,0.0004,2]
[314414658,1708313437773,-254.48388225,0.0004,2]
[314414659,1708313437783,-19290.29871005,0.0004,2]
[314414660,1708313437793,-945.2744249,0.0004,7]
[314414661,1708313437803,-100210.08046101,0.0004,2]
[314414662,1708313437812,-103803.54581468,0.0004,30]
[314414663,1708313437838,-131681.37552513,0.0004,30]
[314414664,1708313437858,-1509.465,0.0004,30]
[314414665,1708313437880,-136046.28058235,0.0004,30]
[314414666,1708313437889,-100739.55389594,0.0004,30]
[314414667,1708313437899,-20922.32643647,0.0004,15]
[314414668,1708313437908,-6000.0,0.0004,3]
[314414669,1708313437917,-300.0,0.0004,19]
[314414670,1708313437927,-299.99999904,0.0004,41]
[314414671,1708313437936,-3276.71534712,0.0004,30]
[314414672,1708313437945,-559.85698143,0.0004,30]
[314414673,1708313437955,-203726.12382671,0.0004,7]
[314414674,1708313437967,-4522.58206961,0.0004,7]
[314414675,1708313438540,-2520.91269359,0.00039068,2]
[314414676,1708313438550,-241.317723,0.00039164,3]
[314414677,1708313438559,-1471.03683927,0.00039165,3]
[314414678,1708313438585,-911.59848134,0.00039165,3]
[314414679,1708313438602,-5804.59330002,0.00039165,3]
[314414680,1708313438624,-1063.4029719,0.00039165,3]
[314414681,1708313438636,-199696.76251334,0.00039165,3]
[314414696,1708313440879,-1303.26,0.00036502,2]
[314414698,1708313442559,-823.52658831,0.00036502,2]
[314414699,1708313442679,-0.0147488,0.00036502,2]
[314414700,1708313442729,-966.16906289,0.00036502,2]
[314414701,1708313442739,-6017.81389549,0.00039165,3]
[314414705,1708313445467,-3316.10610492,0.00039165,3]
[314414706,1708313445719,-6247.483144,0.00039165,3]
[314414785,1708314490423,168.0,0.0002475,3]
[314414790,1708314545153,-451.65905189,0.00025,3]
[314414791,1708314548521,-98.34094811,0.00025,3]
[314414792,1708314548544,-200.0,0.00033,14]
[314414793,1708314548566,-200.0,0.000335,7]
[314414794,1708314548587,-2987.6994,0.000337,2]
[314414795,1708314548607,-180.0,0.00033755,2]
[314414796,1708314548629,-348.15592797,0.000338,2]
[314414797,1708314548650,-1730.0,0.000339,2]
[314414798,1708314548671,-348.15592794,0.00034121,2]
[314414799,1708314548691,-150.0,0.00034441,2]
[314414800,1708314548715,-348.15592794,0.00034442,2]
[314414801,1708314548739,-348.15592794,0.00034763,2]
[314414802,1708314548759,-5162.55,0.00034763,2]
[314414803,1708314548780,-8322.27282621,0.00034999,4]
[314414804,1708314566112,-69734.02306162,0.00034999,4]
[314414809,1708314597170,500.0,0.0002475,6]
[314414812,1708314631732,-424.42649289,0.00034999,4]
[314414823,1708314637837,-26478.2216615,0.00034999,4]
[314414824,1708314637847,-20241.8565,0.00035,2]
[314414825,1708314637856,-348.15592794,0.00035084,2]
[314414826,1708314637865,-340.47,0.00035369,2]
[314414827,1708314637875,-348.15592794,0.00035405,2]
[314414828,1708314637884,-348.15592794,0.00035726,2]
[314414829,1708314637892,-348.15592794,0.00036047,2]
[314414830,1708314637902,-348.15592794,0.00036368,2]
[314414831,1708314637912,-348.15592794,0.00036689,2]
[314414832,1708314637922,-151.0,0.00036712,4]
[314414833,1708314637931,-152.58,0.00036761,2]
[314414834,1708314637940,-348.15592794,0.00037011,2]
[314414835,1708314637950,-1000.0,0.0003729,2]
[314414836,1708314637960,-348.15592794,0.00037332,2]
[314414837,1708314637969,-151.0,0.00037462,2]
[314414838,1708314637978,-340.47,0.00037633,2]
[314414839,1708314637987,-177.82,0.00037633,2]
[314414840,1708314637997,-618.08,0.00037651,2]
[314414841,1708314638006,-348.15592794,0.00037653,2]
[314414843,1708314638016,-190.03,0.00037662,2]
[314414844,1708314638025,-381.92,0.00037688,2]
[314414845,1708314638034,-828.98,0.00037745,2]
[314414846,1708314638044,-150.0,0.000378,2]
[314414847,1708314638053,-150.1,0.00037863,2]
[314414848,1708314638063,-209.0,0.00037888,2]
[314414849,1708314638072,-708.35122002,0.0003795,7]
[314414850,1708314638081,-272.57048952,0.0003795,7]
[314414851,1708314638091,-248.4874925,0.0003795,7]
[314414852,1708314638100,-293.82279207,0.0003795,7]
[314414853,1708314638109,-440.04388334,0.0003795,7]
[314414854,1708314638118,-205.86843146,0.0003795,7]
[314414855,1708314638127,-157.86,0.00037965,2]
[314414856,1708314638136,-348.15592794,0.00037974,2]
[314414857,1708314638145,-13177.02808467,0.00038,4]
[314414858,1708314638154,-166.6,0.00038074,2]
[314414859,1708314638163,-348.15592794,0.00038295,2]
[314414860,1708314638172,-494.48,0.00038356,15]
[314414861,1708314638181,-150.0,0.00038356,2]
[314414862,1708314638191,-1538.12001338,0.00038388,14]
[314414863,1708314638200,-430.41559902,0.00038388,11]
[314414864,1708314638208,-152.58,0.00038405,2]
[314414865,1708314638221,-348.15592794,0.00038616,2]
[314414866,1708314638233,-603.36,0.00038704,2]
[314414867,1708314638245,-348.15592794,0.00038937,2]
[314414868,1708314638257,-151.57423126,0.0003899,2]
[314414869,1708314638270,-1048.8046,0.00039065,2]
[314414870,1708314638282,-262.15242438,0.00039163,2]
[314414871,1708314638294,-348.15592794,0.00039258,2]
[314414872,1708314638304,-1000.0,0.0003926,2]
[314414873,1708314638314,-200.0,0.00039272,20]
[314414874,1708314638326,-150.0,0.00039366,2]
[314414875,1708314638337,-6305.54784233,0.00039486,5]
[314414876,1708314638349,-5310.94166075,0.000395,2]
[314414877,1708314638359,-2500.0,0.000395,2]
[314414878,1708314638371,-1128.85091171,0.000395,2]
[314414879,1708314638382,-177.82,0.00039515,2]
[314414880,1708314638394,-348.15592794,0.00039579,2]
[314414881,1708314638406,-152.64,0.000396,3]
[314414882,1708314638417,-152.64,0.000396,3]
[314414883,1708314638428,-152.64,0.000396,3]
[314414884,1708314638440,-152.64,0.000396,3]
[314414885,1708314638450,-152.64,0.000396,3]
[314414886,1708314638460,-152.64,0.000396,3]
[314414887,1708314638470,-152.64,0.000396,3]
[314414888,1708314638482,-3968.4,0.000396,3]
[314414889,1708314638493,-3968.4,0.000396,3]
[314414890,1708314638504,-3968.4,0.000396,3]
[314414891,1708314638515,-3968.4,0.000396,3]
[314414892,1708314638526,-3968.4,0.000396,3]
[314414893,1708314638538,-3968.4,0.000396,3]
[314414894,1708314638548,-3968.4,0.000396,3]
[314414895,1708314638560,-3968.4,0.000396,3]
[314414896,1708314638571,-3968.4,0.000396,3]
[314414897,1708314638583,-3968.4,0.000396,3]
[314414898,1708314638595,-3968.4,0.000396,3]
[314414899,1708314638606,-3968.4,0.000396,3]
[314414900,1708314638616,-3968.4,0.000396,3]
[314414901,1708314638626,-3968.4,0.000396,3]
[314414902,1708314638637,-3968.4,0.000396,3]
[314414903,1708314638649,-3968.4,0.000396,3]
[314414904,1708314638661,-3968.4,0.000396,3]
[314414905,1708314638672,-3968.4,0.000396,3]
[314414906,1708314638684,-3968.4,0.000396,3]
[314414907,1708314638696,-3968.4,0.000396,3]
[314414908,1708314638706,-2463.688,0.00039628,2]
[314414909,1708314638717,-19865.0,0.00039628,2]
[314414910,1708314638727,-1038.0,0.00039628,2]
[314414911,1708314638737,-500.0,0.00039726,2]
[314414912,1708314638751,-566.6798421,0.00039726,4]
[314414913,1708314638762,-564.48247541,0.00039726,4]
[314414914,1708314638774,-203.28543882,0.00039726,4]
[314414915,1708314641540,-341.01541076,0.00039726,4]
[314414916,1708314641551,-500.0,0.00039726,2]
[314414917,1708314641561,-592.70644479,0.00039726,4]
[314414918,1708314641571,-500.0,0.00039726,2]
[314414919,1708314641583,-500.0,0.00039726,2]
[314414920,1708314641593,-500.0,0.00039726,2]
[314414921,1708314641603,-500.0,0.00039726,2]
[314414922,1708314641613,-500.0,0.00039726,2]
[314414923,1708314641623,-500.0,0.00039726,2]
[314414924,1708314641634,-500.0,0.00039726,2]
[314414925,1708314641644,-500.0,0.00039726,4]
[314414926,1708314641655,-552.07818044,0.00039726,4]
[314414927,1708314641665,-229.38167252,0.00039726,4]
[314414928,1708314641676,-500.0,0.00039726,4]
[314414929,1708314641687,-500.0,0.00039726,4]
[314414930,1708314641698,-500.0,0.00039726,2]
[314414931,1708314641707,-556.04496741,0.00039726,4]
[314414932,1708314641718,-164.41968503,0.00039726,4]
[314414933,1708314641728,-500.0,0.00039726,4]
[314414934,1708314641738,-248.18974279,0.00039726,4]
[314414935,1708314641749,-544.27898116,0.00039726,4]
[314414936,1708314641760,-500.0,0.00039726,4]
[314414937,1708314641770,-500.0,0.00039726,4]
[314414938,1708314641781,-500.0,0.00039788,2]
[314414939,1708314641792,-169.18834283,0.000398,9]
[314414940,1708314641802,-515.00577622,0.00039876,12]
[314414941,1708314641813,-1023.48969682,0.00039885,2]
[314414942,1708314641824,-160.0,0.00039891,3]
[314414943,1708314641835,-15717.23309923,0.00039891,3]
[314414947,1708314642709,-453.27,0.00038978,15]
[314414948,1708314642721,-500.0,0.00039726,4]
[314414949,1708314642732,-282.76690077,0.00039891,3]
[314414950,1708314642746,-340.47,0.00039897,2]
[314414951,1708314642757,-500.0,0.00039899,2]
[314414952,1708314642767,-160.0,0.000399,3]
[314414953,1708314642779,-1160.72674653,0.000399,13]
[314414954,1708314642789,-170.9537589,0.000399,2]
[314414955,1708314642801,-206.19996224,0.000399,13]
[314414956,1708314642813,-16000.0,0.000399,3]
[314414957,1708314642823,-348.15592794,0.000399,2]
[314414958,1708314642834,-5000.0,0.000399,3]
[314414959,1708314642845,-194.09025924,0.000399,2]
[314414960,1708314642856,-923.02729154,0.000399,2]
[314414961,1708314642866,-2138.85643388,0.000399,2]
[314414962,1708314642878,-1615.77012727,0.000399,2]
[314414963,1708314642889,-79023.1090293,0.0003997,5]
[314414964,1708314642899,-55347.10306127,0.00039976,5]
[314414965,1708314642928,-23676.00596803,0.00039976,5]
[314414966,1708314642939,-79023.1090293,0.00039978,5]
[314414967,1708314642949,-500.0,0.00039979,4]
[314414968,1708314642959,-49490.46389738,0.0003998,5]
[314414975,1708314645711,-7281.195948,0.0003998,5]
[314414979,1708314670174,1074461.33438775,0.00023,2]
[314414980,1708314673602,200.0,0.00024,6]
[314414981,1708314692223,540.07999115,0.0001,2]
[314414982,1708314694897,1653.7187781,0.0002,2]
[314414985,1708314829717,1476350.65919813,0.00023,2]
[314414986,1708314834898,3950.0,0.0002,2]
[314414987,1708314846409,1000.0,0.000135,2]
[314414988,1708314846578,4312.41230678,0.0002,2]
[314414989,1708314846633,284.24456563,0.000125,2]
[314414990,1708314856050,158.98707309,0.0002,2]
[314414991,1708314858914,236.62810209,0.00022,2]
[314414992,1708314862017,815.39566157,0.000137,2]
[314414993,1708314862537,311.80682512,0.00022,2]
[314414996,1708315211006,155.38673547,0.00022,2]
[314415004,1708315651226,-496.49454538,0.0002313,2]
[314415005,1708315651247,-810.6550561,0.00025,2]
[314415006,1708315747131,-397.6484213,0.00030614,4]
[314415011,1708315756147,-892.11724901,0.00030614,4]
[314415012,1708315756168,-2141.85810878,0.00030615,2]
[314415013,1708315756189,-212.38652924,0.00030616,2]
[314415014,1708315763123,-115.98347076,0.00030616,2]
[314415015,1708315764119,-189.7508795,0.000319,2]
[314415016,1708315764140,-466.65034585,0.00032,5]
[314415017,1708315770110,-19.34965415,0.00032,5]
[314415018,1708315770132,-133.08034585,0.00032196,2]
[314415019,1708315773115,-26.16965415,0.00032196,2]
[314415020,1708315773136,-500.0,0.00032251,2]
[314415021,1708315773158,-189.75087949,0.00032277,2]
[314415022,1708315773178,-622.7,0.00032308,2]
[314415023,1708315773199,-252.36,0.00032386,2]
[314415024,1708315773223,-189.75087949,0.00032655,2]
[314415025,1708315773243,-159.25,0.00032754,2]
[314415026,1708315773263,-2000.0,0.00032762,2]
[314415027,1708315773284,-668.00645808,0.00032768,3]
[314415028,1708315773305,-295.07045189,0.00032771,7]
[314415029,1708315773327,-225.94502411,0.0003288,2]
[314415038,1708315831835,-102.42497589,0.0003288,2]
[314415039,1708315831845,-156.5886,0.00032899,90]
[314415040,1708315831856,-22.84267942,0.000329,2]
[314415041,1708315831892,-146.96499909,0.000329,2]
[314415042,1708315831904,-264.75771016,0.00032998,4]
[314415043,1708315831919,-595.08607004,0.00032998,4]
[314415044,1708315831931,-753.68447758,0.00032999,4]
[314415045,1708315831945,-668.81670017,0.00032999,4]
[314415046,1708315831964,-499.16534257,0.00032999,4]
[314415047,1708315832006,-974.91924833,0.00032999,4]
[314415048,1708315832025,-994.68696021,0.00032999,4]
[314415049,1708315832064,-951.75045202,0.00032999,4]
[314415050,1708315832078,-639.91916815,0.00032999,4]
[314415051,1708315832120,-320.16353191,0.00032999,4]
[314415052,1708315832136,-577.5783648,0.00032999,4]
[314415053,1708315832150,-1019.00584508,0.00032999,4]
[314415054,1708315832165,-1242.11375881,0.00032999,4]
[314415055,1708315832185,-1198.38426701,0.00032999,4]
[314415062,1708315837799,-747.17880586,0.00032999,4]
[314415063,1708315837813,-741.27723955,0.00032999,4]
[314415064,1708315837827,-420.8888349,0.00032999,4]
[314415065,1708315837840,-313.89851893,0.00032999,4]
[314415066,1708315838024,-61407.82931368,0.00032999,4]
[314415067,1708315838035,-9548.40178975,0.00032999,2]
[314415068,1708315838045,-200.0,0.00033,5]
[314415069,1708315838055,-79739.20360871,0.00033,2]
[314415071,1708315840681,-520.14175,0.00033,2]
[314415072,1708315840832,-203815.93879978,0.00033,2]
[314415073,1708315840841,-758.16,0.00033,2]
[314415074,1708315840851,-480.0,0.00033,2]
[314415075,1708315840861,-189.75087949,0.00033032,2]
[314415076,1708315840871,-157.86,0.00033074,2]
[314415077,1708315840881,-499.99,0.00033074,2]
[314415078,1708315840890,-480.0,0.00033151,2]
[314415079,1708315840900,-159.25,0.00033312,2]
[314415080,1708315840910,-169.80767849,0.00033335,2]
[314415081,1708315840919,-189.75087949,0.00033409,2]
[314415082,1708315840928,-250.0,0.00033413,2]
[314415083,1708315840939,-480.0,0.00033425,2]
[314415084,1708315840948,-13676.27344944,0.00033467,2]
[314415085,1708315840960,-8281.56600487,0.00033467,2]
[314415095,1708315844547,-1085.27054569,0.00033467,2]
[314415096,1708315844557,-250.0,0.00033471,2]
[314415097,1708315844566,-480.0,0.00033699,2]
[314415098,1708315844575,-169.80767849,0.0003377,2]
[314415099,1708315844585,-189.75087949,0.00033786,2]
[314415101,1708315844594,-7098.0,0.000338,2]
[314415102,1708315844603,-159.25,0.0003387,2]
[314415103,1708315844617,-480.0,0.00033973,2]
[314415104,1708315844628,-252.36,0.0003403,2]
[314415105,1708315844637,-189.75087949,0.00034164,2]
[314415106,1708315844647,-164.94,0.00034322,2]
[314415107,1708315844657,-480.0,0.00034521,2]
[314415108,1708315844666,-189.75087949,0.00034541,2]
[314415109,1708315844675,-169.18834276,0.00034699,7]
[314415110,1708315844684,-2222.51624125,0.00034798,2]
[314415111,1708315844694,-189.75087949,0.00034918,2]
[314415112,1708315844703,-929.54,0.00034939,2]
[314415114,1708315844712,-167.34047323,0.00035,4]
[314415116,1708315844721,-305.54,0.00035033,2]
[314415118,1708315844730,-190.03,0.00035068,2]
[314415119,1708315844739,-328.37,0.00035144,2]
[314415120,1708315844749,-189.75087949,0.00035295,2]
[314415121,1708315844758,-694.46,0.00035393,2]
[314415122,1708315844768,-176.06,0.00035544,2]
[314415123,1708315844778,-158.87,0.00035546,2]
[314415124,1708315844787,-500.0,0.00035616,2]
[314415125,1708315844796,-189.75087949,0.00035673,2]
[314415126,1708315844806,-252.36,0.00035673,2]
[314415127,1708315844816,-159.37,0.000358,2]
[314415128,1708315844825,-500.0,0.00035858,2]
[314415129,1708315844835,-151.0,0.00035927,4]
[314415130,1708315844844,-151.57423126,0.00035999,2]
[314415131,1708315844854,-169.18834276,0.00036016,7]
[314415132,1708315844863,-189.75087949,0.0003605,2]
[314415133,1708315844872,-500.0,0.000361,2]
[314415134,1708315844882,-480.0,0.00036247,2]
[314415135,1708315844891,-490.0,0.00036247,2]
[314415136,1708315844901,-500.0,0.00036342,2]
[314415137,1708315844910,-6140.74464235,0.00036389,2]
[314415138,1708315844920,-6140.74464228,0.00036389,2]
[314415139,1708315844930,-6140.74464228,0.00036389,2]
[314415140,1708315844939,-189.75087949,0.00036427,2]
[314415141,1708315844949,-30335.0,0.000365,30]
[314415142,1708315844959,-159.37,0.00036516,2]
[314415143,1708315844968,-500.0,0.00036583,2]
[314415144,1708315844977,-151.0,0.0003666,2]
[314415145,1708315844987,-1128.85091171,0.00036798,2]
[314415146,1708315844996,-1128.85091167,0.00036798,2]
[314415147,1708315845005,-1128.85091167,0.00036798,2]
[314415148,1708315845014,-9171.3346948,0.000368,2]
[314415149,1708315845024,-189.75087949,0.00036804,2]
[314415150,1708315845033,-500.0,0.00036825,2]
[314415151,1708315845042,-8022.52709573,0.00037,15]
[314415152,1708315845054,-500.0,0.00037067,2]
[314415153,1708315845063,-189.75087949,0.00037182,2]
[314415154,1708315845073,-159.37,0.00037232,2]
[314415155,1708315845082,-500.0,0.00037309,2]
[314415156,1708315845092,-252.36,0.00037317,2]
[314415157,1708315845105,-169.18834276,0.00037333,8]
[314415158,1708315845114,-518.62104296,0.000374,5]
[314415159,1708315845124,-328.37,0.00037408,2]
[314415160,1708315845134,-166.6,0.00037417,2]
[314415161,1708315845144,-500.0,0.0003755,2]
[314415162,1708315845154,-189.75087949,0.00037559,2]
[314415163,1708315845163,-1007.053,0.00037599,2]
[314415164,1708315845172,-180.0,0.00037671,2]
[314415165,1708315845182,-1000.0,0.00037679,2]
[314415166,1708315845191,-480.0,0.00037696,2]
[314415167,1708315845200,-1048.8046,0.0003778,2]
[314415168,1708315845210,-1000.0,0.0003778,2]
[314415169,1708315845219,-500.0,0.00037792,2]
[314415170,1708315845229,-150.0,0.000378,2]
[314415171,1708315845239,-1024.4520833,0.000378,2]
[314415172,1708315845248,-150.1,0.00037863,2]
[314415173,1708315845258,-279.40691123,0.0003787,2]
[314415174,1708315845267,-262.15242438,0.00037878,2]
[314415175,1708315845277,-124753.84196822,0.0003788,2]
[314415176,1708315845287,-1128.85091167,0.000379,2]
[314415177,1708315845297,-92957.0264977,0.000379,3]
[314415178,1708315845307,-6140.74464228,0.000379,2]
[314415179,1708315845317,-189.75087949,0.00037936,2]
[314415180,1708315845329,-159.37,0.00037948,2]
[314415181,1708315845338,-546.58679849,0.00037951,7]
[314415182,1708315845348,-1328.64157305,0.00037951,7]
[314415183,1708315845357,-270.70924341,0.00037952,7]
[314415184,1708315845367,-1000.0,0.00037952,10]
[314415185,1708315845376,-211.55520968,0.00037952,7]
[314415186,1708315845386,-480.0,0.00037973,2]
[314415187,1708315845395,-150.1,0.00038,2]
[314415188,1708315845405,-13177.02808467,0.00038,4]
[314415189,1708315845414,-214.59791816,0.00038,2]
[314415190,1708315845423,-214.59791816,0.00038,2]
[314415191,1708315845433,-500.0,0.00038034,2]
[314415192,1708315845442,-500.0,0.00038276,2]
[314415193,1708315845452,-189.75087949,0.00038313,2]
[314415194,1708315845461,-150.0,0.00038356,2]
[314415195,1708315845471,-456.71,0.00038356,15]
[314415196,1708315845480,-6305.54784233,0.00038376,5]
[314415197,1708315845489,-452.67268134,0.00038388,13]
[314415198,1708315845498,-692.15400602,0.00038388,13]
[314415199,1708315845507,-255.26985099,0.00038388,11]
[314415200,1708315845517,-500.0,0.00038517,2]
[314415201,1708315845526,-169.18834276,0.0003865,9]
[314415202,1708315845535,-159.37,0.00038664,2]
[314415203,1708315845544,-189.75087949,0.00038691,2]
[314415204,1708315845554,-6448.0,0.000387,120]
[314415205,1708315845563,-500.0,0.00038759,2]
[314415206,1708315845572,-154.6046623,0.000389,2]
[314415207,1708315845582,-2463.688,0.00038918,2]
[314415208,1708315845590,-19865.0,0.00038918,2]
[314415209,1708315845600,-1038.0,0.00038918,2]
[314415210,1708315845609,-252.36,0.00038961,2]
[314415211,1708315845618,-65044.28655658,0.00038979,4]
[314415212,1708315845635,-15115.98800042,0.00038979,4]
[314415214,1708315849287,-1404.07586516,0.00038979,4]
[314415215,1708315849341,-873.88559492,0.00038979,4]
[314415216,1708315849398,-6412.27081602,0.00038979,4]
[314415229,1708316949156,-500.0,0.000329,2]
[314415230,1708316949176,-262.69,0.00034823,2]
[314415231,1708316949195,-150.0,0.00034875,2]
[314415232,1708316949215,-164.94648109,0.00034891,2]
[314415233,1708316949234,-1716.8322,0.00034893,2]
[314415234,1708316949252,-521.63742383,0.00034991,4]
[314415242,1708317032140,-249.55,0.0003426,2]
[314415243,1708317032149,-10.45,0.00034792,4]
[314415244,1708317032234,-649.13348903,0.00034792,4]
[314415245,1708317032244,-2987.6994,0.00034793,2]
[314415246,1708317032253,-194.89905967,0.00034991,4]
[314415247,1708317032262,-291.63857861,0.00034993,4]
[314415248,1708317032271,-400.0,0.00034999,3]
[314415249,1708317032280,-1351.86054659,0.00035,2]
[314415250,1708317032292,-8700.86495341,0.00035,2]
[314415251,1708317032302,-755.56,0.00035841,2]
[314415252,1708317032311,-518.91,0.00035876,2]
[314415253,1708317032320,-360.0,0.0003589,2]
[314415254,1708317032330,-360.0,0.00036,2]
[314415255,1708317032339,-250.0,0.00036202,2]
[314415256,1708317032348,-162.44,0.00036257,2]
[314415257,1708317032358,-150.1,0.00036271,2]
[314415258,1708317032367,-164.94648108,0.00036277,2]
[314415259,1708317032376,-252.36,0.00036353,2]
[314415260,1708317032386,-152.43,0.00036472,2]
[314415261,1708317032395,-249.55,0.00036524,2]
[314415262,1708317032404,-16307.58588791,0.00036549,4]
[314415263,1708317032511,-0.14418486,0.00036549,4]
[314415273,1708317043103,-1773.13105019,0.00036549,4]
[314415274,1708317043268,-55390.3997066,0.00036549,4]
[314415275,1708317043277,-244.44,0.0003655,2]
[314415276,1708317043286,-157.45,0.00036571,2]
[314415277,1708317043295,-2500.0,0.00036704,2]
[314415278,1708317043305,-774.61,0.00036799,2]
[314415279,1708317043314,-3684.44678544,0.000368,2]
[314415280,1708317043323,-201058.3228,0.00036804,2]
[314415281,1708317043332,-677.31054702,0.000369,2]
[314415282,1708317043342,-1000.0,0.00037,2]
[314415283,1708317043383,-238.6,0.00037166,120]
[314415284,1708317043392,-360.0,0.00037397,2]
[314415285,1708317043401,-162.44,0.00037466,2]
[314415286,1708317043410,-169.18834276,0.0003748,8]
[314415287,1708317043419,-270.0,0.00037527,3]
[314415288,1708317043428,-21129.3156,0.0003758,2]
[314415289,1708317043437,-164.94648108,0.00037662,2]
[314415291,1708317043449,-235242.9551,0.0003768,2]
[314415292,1708317043459,-280.10215641,0.0003768,2]
[314415293,1708317043469,-1000.0,0.0003778,2]
[314415294,1708317043479,-208.2,0.000378,2]
[314415295,1708317043488,-231.39,0.00037844,2]
[314415296,1708317043497,-243.63831907,0.00037952,7]
[314415297,1708317043506,-234.16342654,0.00037952,7]
[314415298,1708317043515,-279.5436217,0.00037952,7]
[314415299,1708317043524,-236.40660116,0.00037952,7]
[314415300,1708317043533,-156.79669942,0.00037952,7]
[314415301,1708317043542,-13177.02808467,0.00038,4]
[314415302,1708317043551,-3684.44678536,0.00038033,2]
[314415303,1708317043561,-231.39,0.00038043,2]
[314415304,1708317043570,-152.0,0.00038119,3]
[314415305,1708317043580,-677.310547,0.00038122,2]
[314415306,1708317043589,-155.88,0.00038166,2]
[314415307,1708317043598,-150.0,0.00038178,2]
[314415308,1708317043608,-3000.0,0.00038178,2]
[314415309,1708317043617,-3000.0,0.00038178,2]
[314415310,1708317043626,-3000.0,0.00038178,2]
[314415311,1708317043635,-4032.24752833,0.00038178,2]
[314415312,1708317043645,-231.39,0.00038242,2]
[314415313,1708317043655,-209.0,0.00038259,2]
[314415314,1708317043664,-1321.99670319,0.00038327,2]
[314415315,1708317043674,-197.40184452,0.00038356,7]
[314415316,1708317043683,-263.78609896,0.00038356,7]
[314415317,1708317043692,-192.16266241,0.00038356,7]
[314415318,1708317043702,-213.50324175,0.00038356,7]
[314415319,1708317043711,-418.65,0.00038356,15]
[314415320,1708317043721,-150.0,0.00038356,2]
[314415321,1708317043730,-364.92170992,0.00038388,14]
[314415322,1708317043742,-311.46930271,0.00038388,14]
[314415323,1708317043751,-662.33383501,0.00038388,14]
[314415324,1708317043760,-231.39,0.00038441,2]
[314415325,1708317043770,-1321.99670319,0.0003847,2]
[314415326,1708317043779,-151.021625,0.00038498,29]
[314415327,1708317043789,-231.39,0.0003864,2]
[314415328,1708317043798,-162.44,0.00038674,2]
[314415329,1708317043807,-1321.99670319,0.00038697,2]
[314415330,1708317043816,-195.0,0.00038701,7]
[314415331,1708317043826,-150.0,0.00038701,7]
[314415332,1708317043835,-150.0,0.00038701,7]
[314415333,1708317043844,-150.0,0.00038701,7]
[314415334,1708317043853,-249.55,0.00038788,2]
[314415335,1708317043862,-231.39,0.0003884,2]
[314415336,1708317043871,-92621.0643009,0.00038869,4]
[314415337,1708317043881,-5129.0033,0.00038879,2]
[314415338,1708317043890,-926.33418341,0.000389,2]
[314415339,1708317043899,-242.71793406,0.000389,12]
[314415340,1708317043909,-973.22947904,0.000389,2]
[314415341,1708317043918,-1238.09816,0.00038961,2]
[314415342,1708317043927,-200.0,0.00038979,2]
[314415343,1708317043936,-2000.0,0.00038979,2]
[314415344,1708317043946,-200.0,0.00038979,2]
[314415345,1708317043955,-5000.0,0.00038986,2]
[314415346,1708317043964,-441.81806786,0.00038989,3]
[314415347,1708317043973,-8330.05169666,0.0003899,4]
[314415348,1708317046051,-15198.51056524,0.0003899,4]
[314415349,1708317046277,-7640.73644509,0.0003899,4]